bitfinex-derivatives/quotes_ETHF0:USTF0_20250503
["timestamp","ask_amount","ask_price","bid_price","bid_amount"]
[1746231487174,7.34753,1842.6,1842.5,2.77799]
[1746231488483,6.2626,1842.6,1842.5,2.77799]
[1746231488780,7.34753,1842.6,1842.5,1.08499]
[1746231490784,1.08499,1842.5,1842.4,1.085]
[1746231490983,1.08511,1842.4,1842.3,1.08505]
[1746231491183,1.93111,1842.4,1842.3,1.08505]
[1746231492178,1.93111,1842.4,1842.3,4.80305]
[1746231492378,3.64171,1842.4,1842.3,4.80305]
[1746231500185,6.84951,1842.4,1842.3,3.718]
[1746231501089,1.08516,1842.2,1842.1,1.08521]
[1746231502388,2.71026,1842.2,1842.1,1.08521]
[1746231504087,1.6251,1842.2,1842.1,1.08521]
[1746231504387,1.88201,1842.3,1842.2,1.08516]
[1746231504887,3.54621,1842.3,1842.2,1.08516]
[1746231505284,3.54621,1842.3,1842.2,4.80316]
[1746231509890,6.75401,1842.3,1842.2,4.80316]
[1746231510692,3.54621,1842.3,1842.2,4.80316]
[1746231510885,6.75401,1842.3,1842.2,4.80316]
[1746231511395,6.75401,1842.3,1842.2,6.40886]
[1746231517199,3.54621,1842.3,1842.2,6.40886]
[1746231517500,6.75401,1842.3,1842.2,6.40886]
[1746231518500,3.2078,1842.3,1842.2,6.40886]
[1746231518797,5.4306949,1842.6,1842.5,1.08499]
[1746231519000,5.4306949,1842.6,1842.5,4.50799]
[1746231519200,5.4306949,1842.6,1842.5,8.22599]
[1746231519401,5.4306949,1842.6,1842.5,9.86069]
[1746231520105,5.4306949,1842.6,1842.5,6.14269]
[1746231523008,1.08482,1842.8,1842.7,1.08487]
[1746231523202,6.53032,1842.8,1842.7,1.08487]
[1746231523707,3.718,1842.8,1842.7,1.89547]
[1746231524305,6.89358,1842.9,1842.8,1.08481]
[1746231524707,5.8088,1842.9,1842.8,1.08481]
[1746231524906,5.8088,1842.9,1842.8,2.66751]
[1746231527807,6.89355,1842.9,1842.8,2.66751]
[1746231530810,4.29255,1842.9,1842.8,2.66751]
[1746231531010,3.2078,1842.9,1842.8,2.66751]
[1746231531406,4.8208,1842.9,1842.8,2.66751]
[1746231534912,5.90555,1842.9,1842.8,2.66751]
[1746231536510,4.8208,1842.9,1842.8,2.66751]
[1746231536710,5.90555,1842.9,1842.8,2.66751]
[1746231538412,5.90555,1842.9,1842.8,1.08481]
[1746231542816,4.8208,1842.9,1842.8,1.08481]
[1746231543813,0.8399,1843.0,1842.9,1.08475]
[1746231544018,0.8399,1843.0,1842.9,3.59055]
[1746231544717,1.675,1843.1,1843.0,1.08469]
[1746231544917,1.675,1843.1,1843.0,3.57389]
[1746231545220,5.393,1843.1,1843.0,3.57389]
[1746231546019,8.6008,1843.1,1843.0,3.57389]
[1746231547315,4.8828,1843.1,1843.0,3.57389]
[1746231547617,3.2078,1843.1,1843.0,3.57389]
[1746231550220,6.9258,1843.1,1843.0,3.57389]
[1746231550420,3.718,1843.1,1843.0,3.57389]
[1746231564035,3.718,1843.1,1843.0,1.08469]
[1746231564235,4.5551,1843.1,1843.0,1.08469]
[1746231564749,6.2322,1843.1,1843.0,1.08469]
[1746231565145,2.5142,1843.1,1843.0,1.08469]
[1746231565339,3.59883,1843.1,1843.0,1.08469]
[1746231566139,1.08473,1843.0,1842.9,1.08471]
[1746231566336,3.64693,1843.0,1842.9,1.08471]
[1746231568439,2.5622,1843.0,1842.9,1.08471]
[1746231569647,3.64689,1843.0,1842.9,1.08471]
[1746231574548,6.85469,1843.0,1842.9,1.08471]
[1746231579542,5.77,1843.0,1842.9,1.08471]
[1746231579748,6.85469,1843.0,1842.9,1.08471]
[1746231580449,5.77,1843.0,1842.9,1.08471]
[1746231581347,6.85469,1843.0,1842.9,1.08471]
[1746231581853,5.77,1843.0,1842.9,1.08471]
[1746231582054,2.5622,1843.0,1842.9,1.08471]
[1746231589343,2.5622,1843.0,1842.9,2.76481]
[1746231590154,2.5622,1843.0,1842.9,6.48281]
[1746231590656,3.64689,1843.0,1842.9,6.48281]
[1746231591155,3.64689,1843.0,1842.9,2.76481]
[1746231593155,2.5622,1843.0,1842.9,2.76481]
[1746231596160,0.8371,1843.1,1843.0,1.08469]
[1746231596362,10.3442332,1843.2,1843.1,1.08463]
[1746231596551,11.1418332,1843.2,1843.1,1.08463]
[1746231598361,7.52432,1843.2,1843.1,1.08463]
[1746231601762,6.4397,1843.2,1843.1,1.08463]
[1746231602060,3.2078,1843.2,1843.1,3.60303]
[1746231602263,3.2078,1843.2,1843.1,4.41653]
[1746231603267,7.1943832,1843.3,1843.2,1.08458]
[1746231603567,7.1943832,1843.3,1843.2,2.66068]
[1746231603762,3.6175132,1843.3,1843.2,7.66068]
[1746231603954,3.6175132,1843.3,1843.2,2.66068]
[1746231604161,7.3355132,1843.3,1843.2,2.66068]
[1746231604962,8.4200332,1843.3,1843.2,2.66068]
[1746231605265,7.3355132,1843.3,1843.2,2.66068]
[1746231605469,8.9860132,1843.3,1843.2,2.66068]
[1746231606169,5.3685,1843.3,1843.2,2.66068]
[1746231606366,6.45302,1843.3,1843.2,2.66068]
[1746231606567,5.3685,1843.3,1843.2,2.66068]
[1746231609875,3.718,1843.3,1843.2,2.66068]
[1746231610271,6.2373,1843.3,1843.2,2.66068]
[1746231614986,1.08463,1843.2,1843.1,1.08459]
[1746231615178,1.08469,1843.1,1843.0,1.08464]
[1746231615583,2.79989,1843.1,1843.0,1.08464]
[1746231616485,1.7152,1843.1,1843.0,1.08464]
[1746231616687,3.67103,1843.1,1843.0,1.08464]
[1746231618284,2.5864,1843.1,1843.0,4.80264]
[1746231618491,2.5864,1843.1,1843.0,6.48414]
[1746231619287,2.5864,1843.1,1843.0,2.76614]
[1746231623190,2.5864,1843.1,1843.0,6.48414]
[1746231624287,2.5864,1843.1,1843.0,2.76614]
[1746231629093,5.7942,1843.1,1843.0,2.76614]
[1746231629393,2.5864,1843.1,1843.0,2.76614]
[1746231630693,3.67103,1843.1,1843.0,2.76614]
[1746231630891,2.5864,1843.1,1843.0,2.76614]
[1746231631091,3.67103,1843.1,1843.0,2.76614]
[1746231633592,3.67103,1843.1,1843.0,1.08464]
[1746231637904,3.67103,1843.1,1842.8,0.8033]
[1746231638091,4.2926,1842.9,1842.8,1.08479]
[1746231638493,4.4279,1842.9,1842.8,1.08479]
[1746231642299,4.4279,1842.9,1842.8,4.80279]
[1746231654406,7.6357,1842.9,1842.8,4.80279]
[1746231657303,7.6357,1842.9,1842.8,1.08479]
[1746231658104,7.6357,1842.9,1842.8,4.80279]
[1746231658309,4.4279,1842.9,1842.8,4.80279]
[1746231658608,7.6357,1842.9,1842.8,4.80279]
[1746231660008,7.6357,1842.9,1842.8,3.718]
[1746231660203,1.08481,1842.8,1842.7,1.08484]
[1746231660404,2.67561,1842.8,1842.7,1.08484]
[1746231660906,2.67561,1842.8,1842.7,2.73764]
[1746231662306,2.67561,1842.8,1842.7,6.45564]
[1746231663812,2.67561,1842.8,1842.7,4.80284]
[1746231664711,7.67561,1842.8,1842.7,3.718]
[1746231664907,1.08505,1842.4,1842.3,11.71416829]
[1746231665108,1.08505,1842.4,1842.3,14.34709829]
[1746231665410,1.08505,1842.4,1842.3,15.43220829]
[1746231665808,2.77735,1842.4,1842.3,17.11650829]
[1746231666411,5.98515,1842.4,1842.3,17.11650829]
[1746231666808,2.77735,1842.4,1842.3,17.11650829]
[1746231667409,5.98515,1842.4,1842.3,17.11650829]
[1746231668308,5.98515,1842.4,1842.3,8.22311]
[1746231668506,5.98515,1842.4,1842.3,3.718]
[1746231669205,5.98515,1842.4,1842.3,4.80311]
[1746231669400,4.9001,1842.4,1842.3,4.80311]
[1746231669602,3.2078,1842.6,1842.4,1.08505]
[1746231669808,6.0911132,1842.7,1842.5,2.5541]
[1746231670009,6.0911132,1842.7,1842.6,2.78093]
[1746231670512,7.1759832,1842.7,1842.6,2.78093]
[1746231671117,6.0911132,1842.7,1842.6,2.78093]
[1746231671411,3.6175132,1842.7,1842.6,2.78093]
[1746231672415,3.2078,1842.8,1842.7,1.08487]
[1746231672616,3.2078,1842.8,1842.7,3.53467]
[1746231673216,3.2078,1842.8,1842.7,7.25267]
[1746231674415,1.08476,1842.9,1842.8,1.08481]
[1746231674617,1.08476,1842.9,1842.8,3.57931]
[1746231675114,1.08476,1842.9,1842.8,7.29731]
[1746231676117,1.08476,1842.9,1842.8,3.57931]
[1746231677118,1.08476,1842.9,1842.8,7.29731]
[1746231678316,7.77993,1843.0,1842.9,1.08475]
[1746231679922,4.9541,1843.0,1842.9,1.08475]
[1746231680219,4.9541,1843.0,1842.9,4.80275]
[1746231680420,4.9541,1843.0,1842.9,6.41305]
[1746231680616,6.03879,1843.0,1842.9,6.41305]
[1746231683120,6.03879,1843.0,1842.9,2.69505]
[1746231686123,6.03879,1843.0,1842.9,6.41305]
[1746231687424,2.83099,1843.0,1842.9,6.41305]
[1746231687616,6.03879,1843.0,1842.9,6.41305]
[1746231688325,6.03879,1843.0,1842.9,2.69505]
[1746231692429,6.03879,1843.0,1842.9,1.08475]
[1746231697230,6.03879,1843.0,1842.9,4.80275]
[1746231697522,4.9541,1843.0,1842.9,4.80275]
[1746231697728,1.7463,1843.0,1842.9,6.43885]
[1746231698228,1.7463,1843.0,1842.9,7.24145]
[1746231710642,1.7463,1843.0,1842.9,6.43885]
[1746231711645,2.83099,1843.0,1842.9,6.43885]
[1746231712346,1.7463,1843.0,1842.9,6.43885]
[1746231712536,2.83099,1843.0,1842.9,6.43885]
[1746231713843,1.7463,1843.0,1842.9,6.43885]
[1746231717645,2.83099,1843.0,1842.9,6.43885]
[1746231718847,1.7463,1843.0,1842.9,6.43885]
[1746231720641,2.83099,1843.0,1842.9,6.43885]
[1746231721947,1.7463,1843.0,1842.9,7.30075]
[1746231722150,1.7463,1843.0,1842.9,3.58275]
[1746231723150,1.7463,1843.0,1842.9,7.30075]
[1746231723350,8.7287932,1843.1,1843.0,1.08469]
[1746231723552,10.4059932,1843.1,1843.0,2.75209]
[1746231724152,10.4059932,1843.1,1843.0,6.47009]
[1746231726545,6.8253132,1843.1,1843.0,6.47009]
[1746231726741,6.8253132,1843.1,1843.0,7.27219]
[1746231726951,7.9099432,1843.1,1843.0,7.27219]
[1746231727350,6.8253132,1843.1,1843.0,7.27219]
[1746231727651,6.8253132,1843.1,1843.0,10.69119]
[1746231729151,5.4306949,1843.2,1843.1,1.08463]
[1746231729354,5.3302081,1843.2,1843.1,3.56733]
[1746231729546,5.3302081,1843.2,1843.1,8.56733]
[1746231730151,9.0482081,1843.2,1843.1,8.56733]
[1746231731942,9.0482081,1843.2,1843.1,9.00963876]
[1746231732555,3.718,1843.2,1843.1,16.21873705]
[1746231732957,3.718,1843.2,1843.1,19.42653705]
[1746231733357,3.718,1843.2,1843.1,14.42653705]
[1746231733755,3.718,1843.2,1843.1,20.34253705]
[1746231735963,3.718,1843.2,1843.1,19.90022829]
[1746231736862,3.718,1843.2,1843.1,12.69113]
[1746231740663,3.718,1843.2,1843.1,13.12324871]
[1746231741460,2.53347,1843.2,1843.1,13.12324871]
[1746231744664,4.19867,1843.2,1843.1,13.12324871]
[1746231747367,4.19867,1843.2,1843.1,10.20843]
[1746231747572,5.28325,1843.2,1843.1,10.41863]
[1746231748067,10.28325,1843.2,1843.1,4.50263]
[1746231748272,7.74978,1843.2,1843.1,4.50263]
[1746231748664,10.95758,1843.2,1843.1,3.418]
[1746231748963,1.08463,1843.1,1843.0,3.718]
[1746231749167,1.08463,1843.1,1842.9,1.08471]
[1746231749168,1.08469,1843.0,1842.9,1.08471]
[1746231749366,5.16259,1843.0,1842.9,1.08471]
[1746231749566,1.08475,1842.9,1842.8,4.50281]
[1746231749870,2.73445,1842.9,1842.8,4.50281]
[1746231750064,1.08486,1842.8,1842.7,1.08484]
[1746231750264,6.77766,1842.8,1842.7,1.08484]
[1746231751373,5.6928,1842.8,1842.7,1.08484]
[1746231751766,6.77761,1842.8,1842.7,1.08484]
[1746231752062,5.6928,1842.8,1842.7,1.08484]
[1746231753174,5.6928,1842.8,1842.7,4.80284]
[1746231753674,6.77761,1842.8,1842.7,4.80284]
[1746231753872,11.77761,1842.8,1842.7,3.718]
[1746231754265,11.77764,1842.8,1842.4,12.0476]
[1746231754468,5.12794,1842.8,1842.7,1.08487]
[1746231754871,4.0431,1842.8,1842.7,1.08487]
[1746231755071,4.0431,1842.8,1842.7,4.80287]
[1746231755778,5.12791,1842.8,1842.7,4.80287]
[1746231757179,5.12791,1842.8,1842.7,1.08487]
[1746231757781,4.0431,1842.8,1842.7,1.08487]
[1746231757982,3.2078,1842.8,1842.7,1.08487]
[1746231758181,3.2078,1842.8,1842.7,8.22187]
[1746231758381,3.2078,1842.8,1842.7,9.01417]
[1746231758681,3.2078,1843.0,1842.9,1.08475]
[1746231759283,3.2078,1843.0,1842.9,4.80275]
[1746231760081,4.29249,1843.0,1842.9,4.80275]
[1746231761180,3.2078,1843.0,1842.9,4.80275]
[1746231764085,3.2078,1843.0,1842.9,1.08475]
[1746231765188,3.2078,1843.0,1842.9,4.80275]
[1746231765384,4.9082,1843.0,1842.9,4.80275]
[1746231767786,5.7318,1843.0,1842.9,4.80275]
[1746231768485,5.7318,1843.0,1842.9,6.50325]
[1746231768676,2.524,1843.0,1842.9,6.50325]
[1746231771789,3.60869,1843.0,1842.9,6.50325]
[1746231771986,2.524,1843.0,1842.9,6.50325]
[1746231775187,2.524,1843.0,1842.9,4.80275]
[1746231775889,3.60869,1843.0,1842.9,4.80275]
[1746231777991,2.524,1843.0,1842.9,4.80275]
[1746231778381,6.81649,1843.0,1842.9,4.80275]
[1746231779190,6.81649,1843.0,1842.9,1.08475]
[1746231782191,1.08481,1842.8,1842.7,4.50384]
[1746231782399,1.08481,1842.8,1842.7,1.08484]
[1746231782596,3.2695,1842.8,1842.7,1.08484]
[1746231782897,4.35431,1842.8,1842.7,1.08484]
[1746231783093,1.08477,1842.9,1842.8,1.08481]
[1746231783298,2.4277,1842.9,1842.8,2.77251]
[1746231783596,3.51245,1842.9,1842.8,3.61321]
[1746231784102,3.51245,1842.9,1842.8,7.33121]
[1746231786702,2.4277,1842.9,1842.8,7.33121]
[1746231790509,3.51245,1842.9,1842.8,7.33121]
[1746231793710,2.4277,1842.9,1842.8,7.33121]
[1746231795814,5.6355,1842.9,1842.8,7.33121]
[1746231796714,2.4277,1842.9,1842.8,7.33121]
[1746231797110,2.4277,1842.9,1842.8,3.718]
[1746231797316,11.72025,1842.9,1842.8,3.718]
[1746231798216,1.08493,1842.6,1842.5,7.20909829]
[1746231798416,1.08493,1842.6,1842.5,8.29408829]
[1746231798810,3.59573,1842.6,1842.5,7.20909829]
[1746231799116,3.59573,1842.6,1842.5,10.92709829]
[1746231799318,3.59573,1842.6,1842.5,12.01208829]
[1746231800215,3.59573,1842.6,1842.5,4.80299]
[1746231801517,3.59573,1842.6,1842.5,3.718]
[1746231802818,3.59573,1842.6,1842.5,4.80299]
[1746231803620,6.80353,1842.6,1842.5,4.80299]
[1746231805922,6.80353,1842.6,1842.5,3.718]
[1746231807123,6.80353,1842.6,1842.5,4.80299]
[1746231807323,6.80353,1842.6,1842.5,3.718]
[1746231807522,6.80353,1842.6,1842.5,4.80299]
[1746231818134,6.80353,1842.6,1842.5,3.718]
[1746231820135,1.08499,1842.5,1842.4,2.7732]
[1746231820336,2.77049,1842.5,1842.4,2.7732]
[1746231821136,2.77049,1842.5,1842.4,6.4912]
[1746231823033,2.77049,1842.5,1842.4,3.718]
[1746231823543,1.08534,1842.0,1841.9,4.5053]
[1746231823739,1.08534,1842.0,1841.9,7.0395]
[1746231824133,1.08534,1842.0,1841.9,10.7575]
[1746231824538,2.82104,1842.0,1841.9,10.7575]
[1746231832341,2.82104,1842.0,1841.9,7.3375]
[1746231833447,2.82104,1842.0,1841.9,4.8033]
[1746231836346,2.82104,1842.0,1841.9,6.4293]
[1746231836962,2.82104,1842.0,1841.9,5.344]
[1746231837249,2.82104,1842.0,1841.9,3.718]
[1746231837950,7.82104,1842.0,1841.9,3.718]
[1746231838452,2.82104,1842.0,1841.9,3.718]
[1746231838639,1.08546,1841.7,1841.6,1.7197]
[1746231839152,4.47986,1841.7,1841.6,1.7197]
[1746231839449,1.08552,1841.6,1841.5,5.66394]
[1746231839648,6.01842,1841.6,1841.5,5.66394]
[1746231840145,6.01842,1841.6,1841.5,3.718]
[1746231854463,2.71401,1841.5,1841.0,1.08585]
[1746231854651,1.0859,1841.1,1841.0,1.08585]
[1746231854857,1.08591,1841.0,1840.9,1.08589]
[1746231855161,1.08591,1841.0,1840.9,5.65699]
[1746231855655,1.08591,1841.0,1840.9,7.36519]
[1746231857055,4.29371,1841.0,1840.9,7.36519]
[1746231857256,4.29371,1841.0,1840.9,3.718]
[1746231857460,5.95191,1841.0,1840.9,3.718]
[1746231858450,5.95191,1841.0,1840.9,4.80393]
[1746231859366,5.95191,1841.0,1840.9,3.718]
[1746231864265,2.74411,1841.0,1840.9,3.718]
[1746231864465,5.95191,1841.0,1840.9,3.718]
[1746231880173,2.74411,1841.0,1840.9,3.718]
[1746231880371,5.95191,1841.0,1840.9,3.718]
[1746231888679,5.95191,1841.0,1840.9,2.306]
[1746231888986,10.95191,1841.0,1840.9,0.0723]
[1746231889187,1.08611,1840.6,1840.5,1.7101]
[1746231889486,4.29391,1840.6,1840.5,1.7101]
[1746231889881,6.00411,1840.6,1840.5,1.7101]
[1746231890087,6.00411,1840.6,1840.5,5.4281]
[1746231903296,2.79631,1840.6,1840.5,5.4281]
[1746231903698,6.00411,1840.6,1840.5,5.4281]
[1746231904202,9.61299173,1840.6,1840.5,5.4281]
[1746231904501,6.40519173,1840.6,1840.5,5.4281]
[1746231904695,9.61299173,1840.6,1840.5,5.4281]
[1746231912703,7.90279173,1840.6,1840.5,5.4281]
[1746231913094,9.57059173,1840.6,1840.5,5.4281]
[1746231914506,5.96171,1840.6,1840.5,5.4281]
[1746231918407,9.57059173,1840.6,1840.5,5.4281]
[1746231922110,5.96171,1840.6,1840.5,5.4281]
[1746231925209,9.57059173,1840.6,1840.5,5.4281]
[1746231925710,6.36279173,1840.6,1840.5,5.4281]
[1746231925909,9.57059173,1840.6,1840.5,5.4281]
[1746231928409,9.57059173,1840.6,1840.5,3.718]
[1746231932509,11.39683171,1840.6,1840.5,3.718]
[1746231936012,13.14889361,1840.6,1840.5,3.718]
[1746231945724,13.14889361,1840.6,1840.5,5.3982]
[1746231947230,13.14889361,1840.6,1840.5,3.718]
[1746231947419,13.1676468,1840.6,1840.5,3.718]
[1746231949319,13.18624822,1840.6,1840.5,3.718]
[1746231959324,13.18624822,1840.6,1840.5,6.2873]
[1746231960431,15.07316058,1840.6,1840.5,4.5738]
[1746231960832,15.07316058,1840.6,1840.5,3.718]
[1746231963236,15.07316058,1840.6,1840.5,2.44086]
[1746231963434,15.07316058,1840.6,1840.5,1.34811]
[1746231968943,15.07316058,1840.6,1840.5,0.11919]
[1746231969342,1.08629,1840.3,1840.2,0.8558]
[1746231969543,5.92352,1840.3,1840.1,1.6753]
[1746231969844,1.08634,1840.2,1840.1,2.4715]
[1746231970243,1.12369461,1840.2,1840.1,2.4715]
[1746231970743,2.79849461,1840.2,1840.1,2.4715]
[1746231972744,2.79379073,1840.2,1840.1,2.4715]
[1746231975651,8.23922866,1840.2,1840.1,2.4715]
[1746231977949,6.56442866,1840.2,1840.1,2.4715]
[1746231979343,4.74233909,1840.2,1840.1,2.4715]
[1746231982153,6.56442866,1840.2,1840.1,2.4715]
[1746231983243,8.17292866,1840.2,1840.1,2.4715]
[1746231984350,6.56442866,1840.2,1840.1,2.4715]
[1746231987152,6.58311706,1840.2,1840.1,2.4715]
[1746231988049,6.60180546,1840.2,1840.1,2.4715]
[1746231988750,4.7807622,1840.2,1840.1,2.4715]
[1746231989956,4.79935798,1840.2,1840.1,2.4715]
[1746231990550,4.81795376,1840.2,1840.1,2.4715]
[1746231990951,8.02575376,1840.2,1840.1,2.4715]
[1746231991148,6.94411764,1840.2,1840.1,8.5579]
[1746231991454,8.03045764,1840.2,1840.1,8.5579]
[1746231991649,8.03045764,1840.2,1840.1,7.4715]
[1746231993055,8.03045764,1840.2,1840.1,8.5579]
[1746231994360,8.03045764,1840.2,1840.1,3.5579]
[1746231995760,8.03045764,1840.2,1840.1,8.5579]
[1746231997064,1.19826297,1840.2,1840.1,8.5579]
[1746231997461,0.11192297,1840.2,1840.1,8.5579]
[1746231997665,1.19826297,1840.2,1840.1,8.5579]
[1746231999473,1.19826297,1840.2,1840.1,3.5579]
[1746232001771,4.40606297,1840.2,1840.1,3.5579]
[1746232002270,4.40606297,1840.2,1840.1,2.4715]
[1746232002468,6.06736297,1840.2,1840.1,1.8826]
[1746232004369,6.06736297,1840.2,1840.1,1.0864]
[1746232004571,1.0864,1840.1,1840.0,4.80443]
[1746232004770,3.535,1840.1,1840.0,4.80443]
[1746232005569,3.64692297,1840.1,1840.0,6.47083]
[1746232008270,6.85472297,1840.1,1840.0,6.47083]
[1746232009372,6.85472297,1840.1,1840.0,3.718]
[1746232009672,7.71732297,1840.1,1840.0,3.718]
[1746232015175,11.34171764,1840.1,1840.0,3.718]
[1746232019475,13.1627609,1840.1,1840.0,3.718]
[1746232019873,16.5867609,1840.1,1840.0,3.718]
[1746232024682,11.14132297,1840.1,1840.0,3.718]
[1746232028081,7.93352297,1840.1,1840.0,3.718]
[1746232028481,11.14132297,1840.1,1840.0,3.718]
[1746232030581,10.27872297,1840.1,1840.0,3.718]
[1746232030881,15.71117331,1840.1,1840.0,3.718]
[1746232031881,15.71117331,1840.1,1840.0,5.3545]
[1746232033383,14.89537331,1840.1,1840.0,6.2259]
[1746232033585,13.26257331,1840.1,1840.0,6.2259]
[1746232034386,11.45107412,1840.1,1840.0,6.2259]
[1746232037788,11.45107412,1840.1,1840.0,7.31236]
[1746232038677,11.45107412,1840.1,1840.0,6.2259]
[1746232039293,7.83012297,1840.1,1840.0,6.2259]
[1746232040290,4.62232297,1840.1,1840.0,6.2259]
[1746232040493,7.83012297,1840.1,1840.0,6.2259]
[1746232041793,4.40612297,1840.1,1840.0,6.2259]
[1746232044094,4.40612297,1840.1,1840.0,7.31236]
[1746232044479,3.31972297,1840.1,1840.0,7.31236]
[1746232044888,4.40612297,1840.1,1840.0,7.31236]
[1746232045086,3.31972297,1840.1,1840.0,7.31236]
[1746232045386,4.40612297,1840.1,1840.0,7.31236]
[1746232045792,3.31972297,1840.1,1840.0,7.31236]
[1746232046089,3.31972297,1840.1,1840.0,12.31236]
[1746232046389,0.11192297,1840.1,1840.0,12.31236]
[1746232051297,0.11192297,1840.1,1840.0,7.31236]
[1746232052499,9.34965115,1840.5,1840.4,1.08623]
[1746232052693,8.51415115,1840.5,1840.4,1.08623]
[1746232053001,10.41212115,1840.5,1840.4,1.08623]
[1746232053196,10.41212115,1840.5,1840.4,4.80423]
[1746232053697,10.41212115,1840.5,1840.4,6.50713]
[1746232054801,9.32595115,1840.5,1840.4,6.50713]
[1746232055298,6.82875115,1840.5,1840.4,6.50713]
[1746232055495,3.2078,1840.5,1840.4,6.50713]
[1746232056797,7.04495115,1840.6,1840.5,1.08617]
[1746232056798,10.25275115,1840.6,1840.5,1.08617]
[1746232056998,10.25275115,1840.6,1840.5,2.69547]
[1746232057199,10.25275115,1840.6,1840.5,6.41347]
[1746232057398,6.82875115,1840.6,1840.5,6.41347]
[1746232057598,8.55555115,1840.6,1840.5,6.41347]
[1746232058088,9.64166115,1840.6,1840.5,6.41347]
[1746232058895,8.55555115,1840.6,1840.5,6.41347]
[1746232059601,8.55555115,1840.6,1840.5,4.80417]
[1746232059795,4.9346,1840.6,1840.5,4.80417]
[1746232060809,6.02071,1840.6,1840.5,4.80417]
[1746232061096,4.9346,1840.6,1840.5,4.80417]
[1746232063801,6.02071,1840.6,1840.5,4.80417]
[1746232064404,4.9346,1840.6,1840.5,4.80417]
[1746232064903,6.02071,1840.6,1840.5,4.80417]
[1746232065104,4.9346,1840.6,1840.5,4.80417]
[1746232065505,1.7268,1840.6,1840.5,4.80417]
[1746232065702,4.9346,1840.6,1840.5,4.80417]
[1746232065906,6.02071,1840.6,1840.5,4.80417]
[1746232068907,2.81291,1840.6,1840.5,4.80417]
[1746232069107,6.02071,1840.6,1840.5,4.80417]
[1746232074214,2.81291,1840.6,1840.5,4.80417]
[1746232074509,6.02071,1840.6,1840.5,4.80417]
[1746232077815,2.81291,1840.6,1840.5,4.80417]
[1746232078006,6.02071,1840.6,1840.5,4.80417]
[1746232078408,6.02071,1840.6,1840.5,3.718]
[1746232079516,9.44271,1840.6,1840.5,3.718]
[1746232084019,14.44271,1840.6,1840.5,3.718]
[1746232084826,18.06366115,1840.6,1840.5,3.718]
[1746232088328,13.06366115,1840.6,1840.5,3.718]
[1746232088526,16.70329391,1840.6,1840.5,3.718]
[1746232090631,13.49549391,1840.6,1840.5,3.718]
[1746232090927,16.70329391,1840.6,1840.5,3.718]
[1746232095126,9.44271,1840.6,1840.5,3.718]
[1746232096135,6.23491,1840.6,1840.5,3.718]
[1746232096331,9.44271,1840.6,1840.5,3.718]
[1746232102027,14.44271,1840.6,1840.5,2.58195]
[1746232102535,14.44271,1840.6,1840.5,1.36743]
[1746232102736,14.44271,1840.6,1840.5,0.11629]
[1746232103739,1.08634,1840.2,1840.1,1.5985]
[1746232103946,4.29414,1840.2,1840.1,1.5985]
[1746232105835,9.63047421,1840.2,1840.1,1.5985]
[1746232106537,1.0864,1840.1,1840.0,4.554]
[1746232106726,3.62,1840.1,1840.0,4.554]
[1746232107130,3.62,1840.1,1840.0,3.718]
[1746232109731,10.86666842,1840.1,1840.0,3.718]
[1746232111038,11.29282471,1840.1,1840.0,3.718]
[1746232116042,9.46937585,1840.1,1840.0,3.718]
[1746232124746,9.04321956,1840.1,1840.0,3.718]
[1746232125947,9.04321956,1840.1,1840.0,5.4375]
[1746232127151,3.62,1840.1,1840.0,5.4375]
[1746232127943,1.0864,1840.1,1840.0,5.4375]
[1746232129851,3.6026,1840.1,1840.0,5.4375]
[1746232130454,7.21792225,1840.1,1840.0,5.4375]
[1746232133854,9.02558338,1840.1,1840.0,5.4375]
[1746232139355,6.50938338,1840.1,1840.0,5.4375]
[1746232140259,1.0864,1840.1,1840.0,5.4375]
[1746232143558,4.2942,1840.1,1840.0,5.4375]
[1746232147859,11.54086842,1840.1,1840.0,5.4375]
[1746232151063,13.36829597,1840.1,1840.0,5.4375]
[1746232151763,15.95649597,1840.1,1840.0,5.4375]
[1746232154465,6.8824,1840.1,1840.0,5.4375]
[1746232155868,6.8824,1840.1,1840.0,3.718]
[1746232156459,6.8824,1840.1,1840.0,2.35346]
[1746232156666,6.8824,1840.1,1840.0,1.1844]
[1746232157872,1.08664,1839.7,1839.6,2.5147]
[1746232158169,4.29444,1839.7,1839.6,2.5147]
[1746232161764,5.90314,1839.7,1839.6,2.5147]
[1746232162778,13.15858147,1839.7,1839.6,2.5147]
[1746232165683,9.95078147,1839.7,1839.6,2.5147]
[1746232165883,13.15858147,1839.7,1839.6,2.5147]
[1746232167484,13.15858147,1839.7,1839.6,1.7088]
[1746232167672,1.0867,1839.6,1839.5,3.718]
[1746232167872,3.6708,1839.6,1839.5,3.718]
[1746232169279,3.6708,1839.6,1839.5,6.2065]
[1746232170287,2.5841,1839.6,1839.0,7.20909829]
[1746232170485,4.29479,1839.1,1839.0,8.83629829]
[1746232171187,4.29479,1839.1,1839.0,12.55429829]
[1746232172389,1.08683,1839.4,1839.0,24.55734829]
[1746232172591,1.08683,1839.4,1839.2,1.08691]
[1746232172784,1.08683,1839.4,1839.3,3.3837]
[1746232173284,1.08683,1839.4,1839.3,12.1017]
[1746232173691,3.2078,1839.5,1839.4,1.08682]
[1746232173894,4.29456,1839.5,1839.4,8.68512]
[1746232174083,4.29456,1839.5,1839.4,17.40312]
[1746232175192,1.08676,1839.5,1839.4,17.40312]
[1746232175991,1.08668,1839.7,1839.6,1.08664]
[1746232176579,1.08668,1839.7,1839.6,2.77734]